fUST/lending_fUST_20260320
["ID","MTS","AMOUNT","RATE_DAILY","PERIOD"]
[408611148,1773942641234,-339.0,4.323e-05,2]
[408611149,1773942641243,-339.0,4.323e-05,2]
[408611150,1773942641252,-339.0,4.323e-05,2]
[408611151,1773942641260,-339.0,4.323e-05,2]
[408611152,1773942641269,-339.0,4.323e-05,2]
[408611153,1773942641278,-339.0,4.323e-05,2]
[408611154,1773942641287,-339.0,4.323e-05,2]
[408611155,1773942641296,-339.0,4.323e-05,2]
[408611156,1773942641305,-339.0,4.323e-05,2]
[408611157,1773942641315,-339.0,4.323e-05,2]
[408611158,1773942641324,-339.0,4.323e-05,2]
[408611159,1773942641333,-339.0,4.323e-05,2]
[408611160,1773942641342,-339.0,4.323e-05,2]
[408611161,1773942641351,-339.0,4.323e-05,2]
[408611162,1773942641361,-339.0,4.323e-05,2]
[408611163,1773942641370,-339.0,4.323e-05,2]
[408611164,1773942641379,-339.0,4.323e-05,2]
[408611165,1773942641389,-339.0,4.323e-05,2]
[408611166,1773942641398,-339.0,4.323e-05,2]
[408611167,1773942641406,-339.0,4.323e-05,2]
[408611168,1773942641415,-339.0,4.323e-05,2]
[408611169,1773942641424,-339.0,4.323e-05,2]
[408611170,1773942641433,-339.0,4.323e-05,2]
[408611171,1773942641442,-339.0,4.323e-05,2]
[408611172,1773942641451,-339.0,4.323e-05,2]
[408611173,1773942641459,-339.0,4.323e-05,2]
[408611174,1773942641468,-339.0,4.323e-05,2]
[408611175,1773942641477,-339.0,4.323e-05,2]
[408611176,1773942641486,-339.0,4.323e-05,2]
[408611177,1773942641496,-339.0,4.323e-05,2]
[408611178,1773942641505,-339.0,4.323e-05,2]
[408611179,1773942641514,-339.0,4.323e-05,2]
[408611180,1773942641523,-339.0,4.323e-05,2]
[408611181,1773942641532,-339.0,4.323e-05,2]
[408611182,1773942641543,-339.0,4.323e-05,2]
[408611183,1773942641552,-339.0,4.323e-05,2]
[408611184,1773942641561,-339.0,4.323e-05,2]
[408611185,1773942641570,-339.0,4.323e-05,2]
[408611186,1773942641579,-339.0,4.323e-05,2]
[408611187,1773942641587,-339.0,4.323e-05,2]
[408611188,1773942641596,-339.0,4.323e-05,2]
[408611189,1773942641606,-339.0,4.323e-05,2]
[408611190,1773942641615,-339.0,4.323e-05,2]
[408611191,1773942641624,-339.0,4.323e-05,2]
[408611192,1773942641633,-339.0,4.323e-05,2]
[408611193,1773942641642,-339.0,4.323e-05,2]
[408611194,1773942641651,-339.0,4.323e-05,2]
[408611195,1773942641660,-339.0,4.323e-05,2]
[408611196,1773942641669,-339.0,4.323e-05,2]
[408611197,1773942641678,-339.0,4.323e-05,2]
[408611198,1773942641687,-339.0,4.323e-05,2]
[408611199,1773942641697,-339.0,4.323e-05,2]
[408611200,1773942641706,-351.64073505,4.323e-05,2]
[408611201,1773942641715,-178.0,4.323e-05,2]
[408611202,1773942641724,-178.0,4.323e-05,2]
[408611203,1773942641733,-180.22539177,4.323e-05,2]
[408611204,1773942641743,-300.0515883,4.323e-05,2]
[408611205,1773942641752,-690.0,4.323e-05,2]
[408611206,1773942641761,-690.0,4.323e-05,2]
[408611207,1773942641770,-168.64049201,4.323e-05,2]
[408611208,1773942641779,-339.0,4.323e-05,2]
[408611209,1773942641789,-403.18647773,4.323e-05,2]
[408611210,1773942641799,-1152.0,4.351e-05,2]
[408611211,1773942641808,-162.380719,4.401e-05,2]
[408611212,1773942641818,-445.202766,4.401e-05,2]
[408611213,1773942641829,-151.0,4.401e-05,2]
[408611214,1773942641838,-537.6845,4.401e-05,2]
[408611215,1773942641847,-162.380719,4.401e-05,2]
[408611216,1773942641856,-1957.856,4.401e-05,2]
[408611217,1773942641865,-5376.845,4.401e-05,2]
[408611218,1773942641875,-156.587,4.401e-05,2]
[408611219,1773942641884,-2150.738,4.401e-05,2]
[408611220,1773942641893,-2030.296672,4.456e-05,2]
[408611221,1773942641902,-5575.788265,4.456e-05,2]
[408611222,1773942641912,-1000.0,4.479e-05,2]
[408611223,1773942641921,-244.0,4.479e-05,2]
[408611224,1773942641930,-2105.41764886,4.511e-05,2]
[408611225,1773942641940,-5782.0924308,4.511e-05,2]
[408611226,1773942641949,-800.0,4.515e-05,2]
[408611227,1773942641959,-800.0,4.515e-05,2]
[408611228,1773942641968,-800.0,4.524e-05,2]
[408611229,1773942641977,-800.0,4.526e-05,2]
[408611230,1773942641986,-800.0,4.532e-05,2]
[408611231,1773942641995,-155.0,4.54e-05,2]
[408611232,1773942642004,-573.18467019,4.552e-05,2]
[408611233,1773942642018,-198.47819055,4.554e-05,2]
[408611234,1773942642027,-800.0,4.561e-05,2]
[408611235,1773942642036,-800.0,4.566e-05,2]
[408611236,1773942642045,-2183.31810187,4.566e-05,2]
[408611237,1773942642057,-5996.02985074,4.566e-05,2]
[408611238,1773942642066,-151.0,4.568e-05,2]
[408611239,1773942642075,-151.0,4.568e-05,2]
[408611240,1773942642085,-151.0,4.568e-05,2]
[408611241,1773942642094,-160.740675,4.568e-05,2]
[408611242,1773942642103,-160.740675,4.568e-05,2]
[408611243,1773942642113,-160.740675,4.568e-05,2]
[408611244,1773942642123,-160.740666,4.568e-05,2]
[408611245,1773942642132,-800.0,4.571e-05,2]
[408611246,1773942642141,-800.0,4.574e-05,2]
[408611247,1773942642151,-800.0,4.582e-05,2]
[408611248,1773942642161,-800.0,4.586e-05,2]
[408611249,1773942642170,-800.0,4.595e-05,2]
[408611250,1773942642180,-800.0,4.607e-05,2]
[408611251,1773942642189,-2000.0,4.616e-05,2]
[408611252,1773942642198,-2000.0,4.616e-05,2]
[408611253,1773942642208,-2000.0,4.616e-05,2]
[408611254,1773942642217,-2000.0,4.616e-05,2]
[408611255,1773942642226,-2264.10087164,4.621e-05,2]
[408611256,1773942642235,-6217.88295522,4.621e-05,2]
[408611257,1773942642244,-800.0,4.642e-05,2]
[408611258,1773942642254,-800.0,4.653e-05,2]
[408611259,1773942642263,-800.0,4.66e-05,2]
[408611260,1773942642273,-800.0,4.674e-05,2]
[408611261,1773942642283,-2347.87260389,4.676e-05,2]
[408611262,1773942642292,-6447.94462457,4.676e-05,2]
[408611263,1773942642302,-62842.108632,4.688e-05,2]
[408611264,1773942642311,-20755.378107,4.688e-05,2]
[408611265,1773942642320,-920.272088,4.688e-05,2]
[408611266,1773942642329,-1593.44032606,4.688e-05,2]
[408611267,1773942642338,-800.0,4.698e-05,2]
[408611268,1773942642347,-800.0,4.7e-05,2]
[408611269,1773942642357,-800.0,4.724e-05,2]
[408611270,1773942642366,-800.0,4.724e-05,2]
[408611271,1773942642375,-800.0,4.727e-05,2]
[408611272,1773942642386,-800.0,4.73e-05,2]
[408611273,1773942642395,-2434.74389024,4.731e-05,2]
[408611274,1773942642404,-5316.24070153,4.731e-05,2]
[408611275,1773942642413,-800.0,4.745e-05,2]
[408611276,1773942642422,-1400.01426496,4.747e-05,2]
[408611277,1773942642432,-6816.93448835,4.759e-05,2]
[408611278,1773942642441,-151.0,4.759e-05,2]
[408611279,1773942642451,-151.0,4.759e-05,2]
[408611280,1773942642461,-151.0,4.759e-05,2]
[408611281,1773942642471,-800.0,4.768e-05,2]
[408611282,1773942642480,-800.0,4.769e-05,2]
[408611283,1773942642490,-800.0,4.77e-05,2]
[408611284,1773942642499,-800.0,4.779e-05,2]
[408611285,1773942642509,-800.0,4.783e-05,2]
[408611287,1773942642519,-1512943.66044575,4.784e-05,2]
[408611307,1773943160388,383.402273,1.993e-05,2]
[408611311,1773943234068,466.43489704,2.001e-05,2]
[408611313,1773943409175,2204.34949236,2.001e-05,2]
[408611314,1773943417160,5000.0,2.001e-05,2]
[408611320,1773943775034,-5000.0,2.036e-05,2]
[408611321,1773943775055,-383.402273,2.077e-05,2]
[408611322,1773943775074,-254.27980979,2.077e-05,2]
[408611323,1773943775093,-381.21821721,2.161e-05,2]
[408611358,1773943832001,-334.45923056,2.14e-05,2]
[408611360,1773943832014,-1280.11762686,2.14e-05,2]
[408611362,1773943832025,-914.97430498,2.14e-05,2]
[408611367,1773943832059,-2470.4488376,2.14e-05,2]
[408611370,1773943832069,-2.18405579,2.161e-05,2]
[408611372,1773943832077,-383.402273,2.245e-05,2]
[408611377,1773943832087,-383.402273,2.329e-05,2]
[408611380,1773943832097,-383.402273,2.413e-05,2]
[408611385,1773943832106,-452.95201375,2.458e-05,2]
[408611433,1773943838148,-747.04798625,2.458e-05,2]
[408611434,1773943838158,-300.0,2.459e-05,2]
[408611435,1773943838170,-300.0,2.459e-05,2]
[408611436,1773943838181,-300.0,2.459e-05,2]
[408611437,1773943838190,-300.0,2.46e-05,2]
[408611438,1773943838199,-300.0,2.46e-05,2]
[408611439,1773943838208,-300.0,2.46e-05,2]
[408611440,1773943838218,-300.0,2.46e-05,2]
[408611441,1773943838227,-300.0,2.46e-05,2]
[408611442,1773943838236,-300.0,2.46e-05,2]
[408611443,1773943838246,-300.0,2.46e-05,2]
[408611444,1773943838255,-300.0,2.46e-05,2]
[408611445,1773943838264,-300.0,2.46e-05,2]
[408611446,1773943838274,-300.0,2.46e-05,2]
[408611447,1773943838284,-300.0,2.46e-05,2]
[408611448,1773943838293,-153.49732894,2.46e-05,2]
[408611449,1773943838304,-146.50267106,2.46e-05,2]
[408611450,1773943838313,-300.0,2.46e-05,2]
[408611451,1773943838322,-300.0,2.46e-05,2]
[408611452,1773943838331,-300.0,2.46e-05,2]
[408611453,1773943838342,-420.0,2.705e-05,2]
[408611454,1773943838354,-587.0,2.975e-05,2]
[408611455,1773943838364,-823.0,3.273e-05,2]
[408611456,1773943838373,-500.0,3.563e-05,2]
[408611457,1773943838383,-500.0,3.563e-05,2]
[408611458,1773943838392,-500.15715899,3.563e-05,2]
[408611459,1773943838402,-500.0,3.563e-05,2]
[408611460,1773943838411,-500.0,3.563e-05,2]
[408611461,1773943838420,-500.0,3.563e-05,2]
[408611462,1773943838431,-128218.20855829,3.584e-05,2]
[408611463,1773943838443,-965955.25755743,3.584e-05,2]
[408611464,1773943838453,-91574.39157421,3.584e-05,2]
[408611465,1773943838462,-1152.0,3.6e-05,2]
[408611466,1773943838471,-500.0,3.663e-05,2]
[408611467,1773943838481,-227.35707143,3.663e-05,2]
[408611468,1773943838490,-501.28698986,3.663e-05,2]
[408611469,1773943838501,-500.0,3.663e-05,2]
[408611470,1773943838522,-500.0,3.663e-05,2]
[408611471,1773943838534,-500.0,3.663e-05,2]
[408611472,1773943838545,-600.0,3.757e-05,2]
[408611473,1773943838555,-500.0,3.784e-05,2]
[408611474,1773943838566,-500.0,3.784e-05,2]
[408611475,1773943838575,-500.0,3.784e-05,2]
[408611476,1773943838586,-500.0,3.784e-05,2]
[408611477,1773943838595,-500.0,3.784e-05,2]
[408611478,1773943838605,-500.0,3.784e-05,2]
[408611479,1773943838617,-500.0,3.784e-05,2]
[408611480,1773943838627,-500.0,3.784e-05,2]
[408611481,1773943838641,-500.0,3.784e-05,2]
[408611482,1773943838651,-500.0,3.784e-05,2]
[408611483,1773943838672,-500.0,3.784e-05,2]
[408611484,1773943838687,-500.0,3.784e-05,2]
[408611485,1773943838708,-500.0,3.784e-05,2]
[408611486,1773943838725,-500.0,3.784e-05,2]
[408611487,1773943838735,-500.0,3.784e-05,2]
[408611488,1773943838755,-500.0,3.784e-05,2]
[408611489,1773943838768,-500.0,3.784e-05,2]
[408611490,1773943838778,-500.0,3.784e-05,2]
[408611491,1773943838807,-500.0,3.784e-05,2]
[408611492,1773943838821,-500.0,3.784e-05,2]
[408611493,1773943838850,-500.0,3.784e-05,2]
[408611494,1773943838864,-500.0,3.784e-05,2]
[408611495,1773943838878,-500.0,3.784e-05,2]
[408611496,1773943838889,-500.0,3.784e-05,2]
[408611497,1773943838900,-500.0,3.784e-05,2]
[408611498,1773943838927,-500.0,3.784e-05,2]
[408611499,1773943839152,-500.0,3.784e-05,2]
[408611500,1773943839163,-500.0,3.784e-05,2]
[408611501,1773943839173,-500.0,3.784e-05,2]
[408611502,1773943839182,-500.0,3.784e-05,2]
[408611503,1773943839192,-500.0,3.784e-05,2]
[408611504,1773943839202,-500.0,3.784e-05,2]
[408611505,1773943839211,-500.0,3.784e-05,2]
[408611506,1773943839221,-500.0,3.784e-05,2]
[408611507,1773943839230,-500.0,3.784e-05,2]
[408611508,1773943839240,-500.0,3.784e-05,2]
[408611509,1773943839250,-500.0,3.784e-05,2]
[408611510,1773943839260,-500.0,3.784e-05,2]
[408611511,1773943839270,-500.0,3.784e-05,2]
[408611512,1773943839280,-500.0,3.784e-05,2]
[408611513,1773943839290,-500.0,3.784e-05,2]
[408611514,1773943839300,-500.0,3.784e-05,2]
[408611515,1773943839309,-500.0,3.784e-05,2]
[408611516,1773943839319,-500.0,3.784e-05,2]
[408611517,1773943839328,-500.0,3.784e-05,2]
[408611518,1773943839337,-500.0,3.784e-05,2]
[408611519,1773943839348,-500.0,3.784e-05,2]
[408611520,1773943839359,-500.0,3.784e-05,2]
[408611521,1773943839369,-500.0,3.784e-05,2]
[408611522,1773943839378,-500.0,3.784e-05,2]
[408611523,1773943839387,-500.0,3.784e-05,2]
[408611524,1773943839398,-500.0,3.784e-05,2]
[408611525,1773943839408,-500.0,3.784e-05,2]
[408611526,1773943839417,-500.0,3.784e-05,2]
[408611527,1773943839427,-500.0,3.784e-05,2]
[408611528,1773943839437,-500.0,3.784e-05,2]
[408611529,1773943839446,-500.0,3.784e-05,2]
[408611530,1773943839455,-500.0,3.784e-05,2]
[408611531,1773943839465,-500.0,3.784e-05,2]
[408611532,1773943839474,-500.0,3.784e-05,2]
[408611533,1773943839484,-500.0,3.784e-05,2]
[408611534,1773943839493,-500.0,3.784e-05,2]
[408611535,1773943839503,-500.0,3.784e-05,2]
[408611536,1773943839512,-500.0,3.784e-05,2]
[408611537,1773943839523,-500.0,3.784e-05,2]
[408611538,1773943839534,-500.0,3.784e-05,2]
[408611539,1773943839543,-500.0,3.784e-05,2]
[408611540,1773943839553,-500.0,3.784e-05,2]
[408611541,1773943839562,-500.0,3.784e-05,2]
[408611542,1773943839572,-500.0,3.784e-05,2]
[408611543,1773943839582,-500.0,3.784e-05,2]
[408611544,1773943839592,-500.0,3.784e-05,2]
[408611545,1773943839602,-500.0,3.784e-05,2]
[408611546,1773943839612,-283.39,3.784e-05,2]
[408611547,1773943839621,-500.0,3.784e-05,2]
[408611548,1773943839631,-500.0,3.784e-05,2]
[408611549,1773943839640,-1613.0,3.96e-05,2]
[408611550,1773943839650,-641.0,3.974e-05,2]
[408611551,1773943839660,-1397.0,3.974e-05,2]
[408611552,1773943839669,-2189.0,3.974e-05,2]
[408611553,1773943839678,-438.0,3.974e-05,2]
[408611554,1773943839688,-735.0,3.974e-05,2]
[408611555,1773943839697,-185.249,3.974e-05,2]
[408611556,1773943839706,-647.19442264,4.111e-05,2]
[408611557,1773943839715,-1000.0,4.111e-05,2]
[408611558,1773943839725,-1000.0,4.111e-05,2]
[408611559,1773943839734,-1000.0,4.111e-05,2]
[408611560,1773943839743,-1000.0,4.111e-05,2]
[408611561,1773943839753,-720.0,4.132e-05,2]
[408611562,1773943839764,-150.0,4.144e-05,2]
[408611563,1773943839773,-1000.0,4.211e-05,2]
[408611564,1773943839782,-1000.0,4.211e-05,2]
[408611565,1773943839791,-1000.0,4.211e-05,2]
[408611566,1773943839802,-1000.0,4.211e-05,2]
[408611567,1773943839811,-151.0,4.354e-05,2]
[408611568,1773943839820,-445.202766,4.354e-05,2]
[408611569,1773943839829,-537.6845,4.354e-05,2]
[408611570,1773943839838,-162.380719,4.354e-05,2]
[408611571,1773943839848,-1392.64165006,4.354e-05,2]
[408611572,1773943839857,-162.380719,4.354e-05,2]
[408611573,1773943839867,-156.587,4.354e-05,2]
[408611574,1773943839877,-2150.738,4.354e-05,2]
[408611575,1773943839886,-2258.0,4.356e-05,2]
[408611576,1773943839895,-788.0,4.4e-05,2]
[408611577,1773943839904,-500.0,4.513e-05,2]
[408611578,1773943839914,-864.0,4.546e-05,2]
[408611579,1773943839923,-1500.0,4.658e-05,2]
[408611580,1773943839934,-1500.0,4.658e-05,2]
[408611581,1773943839943,-1500.0,4.658e-05,2]
[408611582,1773943839952,-1500.0,4.658e-05,2]
[408611583,1773943839961,-160.0,4.683e-05,2]
[408611584,1773943839971,-1843.86937458,4.688e-05,2]
[408611585,1773943839981,-1500.0,4.758e-05,2]
[408611586,1773943839990,-1500.0,4.758e-05,2]
[408611588,1773943840000,-1500.0,4.758e-05,2]
[408611589,1773943840009,-1169.96306859,4.758e-05,2]
[408611590,1773943840022,-1145310.70078818,4.784e-05,2]
[408611632,1773943840711,-442.58507751,4.784e-05,2]
[408611655,1773943846240,-802.0264,4.736e-05,2]
[408611656,1773943846456,-2329.18508868,4.736e-05,2]
[408611657,1773943846468,-325.40690407,4.736e-05,2]
[408611677,1773944758432,166.8623412,1.737e-05,2]
[408611682,1773944801217,-160.720464,3.287e-05,2]
[408611685,1773945024129,-1517.21907138,3.157e-05,2]
[408611714,1773945032288,-290.96046461,3.157e-05,2]
[408611716,1773945032298,-199.6185339,3.189e-05,2]
[408611725,1773945032370,-4800.3814661,3.189e-05,2]
[408611727,1773945032380,-206.15012869,4.252e-05,2]
[408611729,1773945032391,-93.84987131,4.252e-05,2]
[408611732,1773945032400,-300.0,4.252e-05,2]
[408611735,1773945032409,-641.0,4.253e-05,2]
[408611738,1773945032418,-2189.0,4.253e-05,2]
[408611741,1773945032427,-378.26312266,4.253e-05,2]
[408611743,1773945032439,-1018.73687734,4.253e-05,2]
[408611745,1773945032448,-280.059,4.253e-05,2]
[408611747,1773945032458,-185.249,4.253e-05,2]
[408611749,1773945032468,-438.0,4.253e-05,2]
[408611751,1773945032478,-4988.124678,4.484e-05,2]
[408611753,1773945032487,-300.0,4.487e-05,2]
[408611754,1773945032496,-300.0,4.487e-05,2]
[408611756,1773945032506,-300.0,4.487e-05,2]
[408611758,1773945032515,-300.0,4.487e-05,2]
[408611761,1773945032525,-300.0,4.487e-05,2]
[408611762,1773945032534,-300.0,4.487e-05,2]
[408611764,1773945032543,-300.0,4.487e-05,2]
[408611766,1773945032552,-300.0,4.487e-05,2]
[408611768,1773945032562,-300.0,4.487e-05,2]
[408611770,1773945032571,-300.0,4.487e-05,2]
[408611772,1773945032581,-300.0,4.487e-05,2]
[408611774,1773945032590,-300.0,4.487e-05,2]
[408611776,1773945032599,-300.0,4.487e-05,2]
[408611778,1773945032609,-300.0,4.487e-05,2]
[408611780,1773945032619,-300.0,4.487e-05,2]
[408611782,1773945032628,-600.0,4.576e-05,2]
[408611784,1773945032637,-2150.738,4.581e-05,2]
[408611786,1773945032647,-11685.99934626,4.584e-05,2]
[408611788,1773945032656,-788.0,4.6e-05,2]
[408611790,1773945032666,-12657.6686216,4.658e-05,2]
[408611792,1773945032675,-230.04946136,4.663e-05,2]
[408611794,1773945032685,-420.0,4.677e-05,2]
[408611796,1773945032695,-71536.90340496,4.784e-05,2]
[408611806,1773945038315,-343.98769466,4.736e-05,2]
[408611816,1773945040683,-604.0,4.736e-05,2]
[408611817,1773945040695,-1468.4,4.736e-05,2]
[408611849,1773945043501,-250.820863,4.736e-05,2]
[408611851,1773945043512,-1154.28534846,4.736e-05,2]
[408611852,1773945043524,-622.06039237,4.736e-05,2]
[408611853,1773945043545,-556.44570151,4.736e-05,2]
[408611854,1773945043557,-499.72415054,4.784e-05,2]
[408611855,1773945043570,-1444.16140511,4.784e-05,2]
[408611856,1773945043616,-17.85782933,4.784e-05,2]
[408611871,1773945046368,-301.7671964,4.784e-05,2]
[408611874,1773945046424,-4222.50228088,4.784e-05,2]
[408611875,1773945789834,2101.38,2.001e-05,2]
[408611901,1773946232404,-4091.09591491,3.292e-05,2]
[408611903,1773946232415,-908.90408509,3.292e-05,2]
[408611905,1773946232425,-1218.035738,3.359e-05,2]
[408611907,1773946232434,-1034.2216226,3.441e-05,2]
[408611909,1773946232443,-159.77362396,3.673e-05,2]
[408611911,1773946232454,-3.13238204,3.673e-05,2]
[408611913,1773946232463,-162.906006,3.827e-05,2]
[408611915,1773946232471,-162.906006,3.982e-05,2]
[408611917,1773946232480,-162.906006,4.136e-05,2]
[408611919,1773946232489,-300.0,4.252e-05,2]
[408611921,1773946232499,-641.0,4.253e-05,2]
[408611923,1773946232508,-567.14959996,4.253e-05,2]
[408611925,1773946232520,-829.85040004,4.253e-05,2]
[408611927,1773946232531,-183.001,4.253e-05,2]
[408611929,1773946232539,-150.399,4.253e-05,2]
[408611931,1773946232549,-249.703,4.253e-05,2]
[408611933,1773946232558,-162.906006,4.291e-05,2]
[408611935,1773946232567,-300.0,4.337e-05,2]
[408611937,1773946232577,-300.0,4.337e-05,2]
[408611939,1773946232587,-300.0,4.337e-05,2]
[408611941,1773946232596,-300.0,4.337e-05,2]
[408611943,1773946232605,-300.0,4.337e-05,2]
[408611945,1773946232614,-300.0,4.337e-05,2]
[408611947,1773946232623,-300.0,4.337e-05,2]
[408611949,1773946232632,-300.0,4.337e-05,2]
[408611951,1773946232641,-300.0,4.337e-05,2]
[408611953,1773946232650,-300.0,4.337e-05,2]
[408611955,1773946232659,-300.0,4.337e-05,2]
[408611957,1773946232668,-300.0,4.337e-05,2]
[408611959,1773946232677,-300.0,4.337e-05,2]
[408611961,1773946232687,-300.0,4.337e-05,2]
[408611963,1773946232696,-300.0,4.337e-05,2]
[408611965,1773946232706,-500.0,4.363e-05,2]
[408611967,1773946232715,-500.0,4.363e-05,2]
[408611969,1773946232723,-500.0,4.363e-05,2]
[408611971,1773946232732,-491.47710023,4.363e-05,2]
[408611973,1773946232741,-500.0,4.363e-05,2]
[408611975,1773946232751,-500.0,4.363e-05,2]
[408611977,1773946232760,-500.0,4.363e-05,2]
[408611979,1773946232769,-579.6672349,4.363e-05,2]
[408611981,1773946232779,-500.0,4.363e-05,2]
[408611983,1773946232789,-500.0,4.363e-05,2]
[408611985,1773946232798,-2791.55113223,4.384e-05,2]
[408611988,1773946232816,-853.624,4.384e-05,2]
[408612003,1773946238460,-613.04528849,4.384e-05,2]
[408612004,1773946238514,-104376.38546138,4.384e-05,2]
[408612005,1773946238524,-162.906006,4.446e-05,2]
[408612006,1773946238534,-500.0,4.463e-05,2]
[408612007,1773946238545,-162.380719,4.496e-05,2]
[408612008,1773946238554,-151.0,4.496e-05,2]
[408612009,1773946238565,-445.202766,4.496e-05,2]
[408612010,1773946238575,-537.6845,4.496e-05,2]
[408612011,1773946238584,-162.380719,4.496e-05,2]
[408612012,1773946238593,-156.587,4.496e-05,2]
[408612013,1773946238602,-2150.738,4.496e-05,2]
[408612014,1773946238611,-600.0,4.572e-05,2]
[408612015,1773946238621,-420.0,4.677e-05,2]
[408612016,1773946238630,-1229.24624972,4.688e-05,2]
[408612017,1773946238639,-788.0,4.7e-05,2]
[408612018,1773946238649,-24196.49634904,4.784e-05,2]
[408612020,1773946238658,-2777.76791333,4.784e-05,2]
[408612022,1773946238667,-265.37746685,4.8e-05,2]
[408612024,1773946238677,-265.37746685,4.8e-05,2]
[408612026,1773946238686,-1000.0,4.911e-05,2]
[408612028,1773946238696,-154.13421982,4.911e-05,2]
[408612030,1773946238706,-1000.0,4.911e-05,2]
[408612031,1773946238716,-1000.0,4.911e-05,2]
[408612032,1773946238728,-1000.0,4.911e-05,2]
[408612033,1773946238739,-500.0,4.911e-05,2]
[408612034,1773946238749,-1279.55985088,5e-05,2]
[408612035,1773946238758,-3200.64851263,5e-05,2]
[408612036,1773946238767,-2865.33738071,5e-05,2]
[408612037,1773946238776,-3493.00791565,5e-05,2]
[408612038,1773946238785,-3179.17264814,5e-05,2]
[408612039,1773946238795,-500.0,5e-05,2]
[408612040,1773946238804,-500.0,5e-05,2]
[408612041,1773946238813,-415.31968649,5e-05,2]
[408612042,1773946238822,-500.0,5e-05,2]
[408612043,1773946238831,-500.0,5e-05,2]
[408612044,1773946238840,-500.0,5e-05,2]
[408612045,1773946238849,-500.0,5e-05,2]
[408612046,1773946238858,-500.0,5e-05,2]
[408612047,1773946238867,-500.0,5e-05,2]
[408612048,1773946238876,-500.0,5e-05,2]
[408612049,1773946238885,-500.0,5e-05,2]
[408612050,1773946238895,-500.0,5e-05,2]
[408612051,1773946238904,-500.0,5e-05,2]
[408612052,1773946238913,-465.96750745,5e-05,2]
[408612053,1773946238930,-34.03249255,5e-05,2]
[408612054,1773946238940,-500.0,5e-05,2]
[408612055,1773946238949,-500.0,5e-05,2]
[408612056,1773946238959,-500.0,5e-05,2]
[408612057,1773946238968,-500.0,5e-05,2]
[408612058,1773946238978,-500.0,5e-05,2]
[408612059,1773946238988,-500.0,5e-05,2]
[408612060,1773946238997,-500.0,5e-05,2]
[408612061,1773946239006,-500.0,5e-05,2]
[408612062,1773946239015,-500.0,5e-05,2]
[408612063,1773946239025,-500.0,5e-05,2]
[408612064,1773946239034,-500.0,5e-05,2]
[408612065,1773946239044,-500.0,5e-05,2]
[408612066,1773946239053,-500.0,5e-05,2]
[408612067,1773946239062,-500.0,5e-05,2]
[408612068,1773946239086,-500.0,5e-05,2]
[408612069,1773946239096,-500.0,5e-05,2]
[408612070,1773946239106,-500.0,5e-05,2]
[408612071,1773946239115,-500.0,5e-05,2]
[408612072,1773946239126,-500.0,5e-05,2]
[408612073,1773946239136,-500.0,5e-05,2]
[408612074,1773946239146,-500.0,5e-05,2]
[408612075,1773946239158,-500.0,5e-05,2]
[408612076,1773946239167,-500.0,5e-05,2]
[408612077,1773946239177,-500.0,5e-05,2]
[408612078,1773946239187,-500.0,5e-05,2]
[408612079,1773946239197,-500.0,5e-05,2]
[408612080,1773946239207,-500.0,5e-05,2]
[408612081,1773946239217,-500.0,5e-05,2]
[408612082,1773946239227,-500.0,5e-05,2]
[408612083,1773946239236,-500.0,5e-05,2]
[408612084,1773946239246,-500.0,5e-05,2]
[408612085,1773946239256,-500.0,5e-05,2]
[408612086,1773946239266,-500.0,5e-05,2]
[408612087,1773946239276,-500.0,5e-05,2]
[408612088,1773946239287,-500.0,5e-05,2]
[408612089,1773946239298,-500.0,5e-05,2]
[408612090,1773946239308,-191.78917733,5e-05,2]
[408612091,1773946241078,-308.21082267,5e-05,2]
[408612092,1773946241092,-500.0,5e-05,2]
[408612093,1773946241102,-500.0,5e-05,2]
[408612094,1773946241111,-500.0,5e-05,2]